bitfinex/quotes_SOLUSD_20241117
["timestamp","ask_amount","ask_price","bid_price","bid_amount"]
[1731857824688,33.80840882,234.24,234.15,11.81890882]
[1731857824888,4.2692,234.24,234.15,11.81890882]
[1731857825103,16.08780882,234.26,234.17,11.81890882]
[1731857825599,0.09367462,234.25,234.17,11.81890882]
[1731857825903,0.09367462,234.21,234.14,11.81890882]
[1731857826105,24.12153862,234.21,234.14,11.81890882]
[1731857826610,11.81890882,234.24,234.16,11.81890882]
[1731857826785,0.09367462,234.23,234.16,11.81890882]
[1731857826989,11.81890882,234.24,234.16,11.81890882]
[1731857827409,0.09367462,234.23,234.16,11.81890882]
[1731857827798,0.09367462,234.23,234.14,11.81890882]
[1731857828301,0.12549,234.22,234.14,11.81890882]
[1731857829208,0.21916462,234.21,234.14,11.81890882]
[1731857829388,0.09367462,234.17,234.05,16.3364]
[1731857829586,0.12549,234.16,234.1,11.81890882]
[1731857830886,0.12549,234.22,234.14,11.81890882]
[1731857831094,11.91258344,234.17,234.08,11.81890882]
[1731857831297,0.25098,234.16,234.08,11.81890882]
[1731857833725,0.09367462,234.15,234.08,11.81890882]
[1731857833891,4.36447462,234.15,234.08,11.81890882]
[1731857834204,0.25098,234.14,234.08,11.81890882]
[1731857834989,0.25098,234.14,234.06,11.81890882]
[1731857835213,24.12153862,234.08,234.0,35.66978984]
[1731857835388,0.12549,234.08,234.03,11.81890882]
[1731857835592,11.81890882,234.16,234.07,11.81890882]
[1731857835910,0.09367462,234.14,234.07,11.81890882]
[1731857836109,0.09367462,234.12,234.05,11.81890882]
[1731857836282,24.027864,234.13,234.07,11.81890882]
[1731857836487,0.25098,234.13,234.07,11.81890882]
[1731857836897,0.25098,234.14,234.07,11.81890882]
[1731857837084,0.09367462,234.13,234.07,11.81890882]
[1731857837286,0.21916462,234.13,234.07,11.81890882]
[1731857837788,0.12549,234.13,234.09,11.81890882]
[1731857837996,0.25098,234.17,234.09,11.81890882]
[1731857838195,0.25098,234.17,234.1,7.56697531]
[1731857838996,4.2692,234.24,234.14,7.56697531]
[1731857839202,11.83617531,234.24,234.16,7.56697531]
[1731857839919,4.2704,234.17,234.09,7.56697531]
[1731857840201,24.12153862,234.16,234.05,20.0]
[1731857840411,0.34465462,234.16,234.1,11.82401905]
[1731857840795,11.82401905,234.22,234.12,11.82401905]
[1731857841711,0.09367462,234.21,234.12,11.82401905]
[1731857841893,4.36327462,234.21,234.12,11.82401905]
[1731857842090,0.25098,234.2,234.12,11.82401905]
[1731857842298,0.09367462,234.21,234.16,11.82401905]
[1731857842512,0.09367462,234.21,234.14,11.82401905]
[1731857844010,0.12549,234.2,234.14,11.82401905]
[1731857844209,11.82401905,234.22,234.07,0.2]
[1731857844505,21.9878,234.27,234.16,11.82401905]
[1731857844506,0.09367462,234.25,234.16,11.82401905]
[1731857844710,6.63591056,234.31,234.22,11.82401905]
[1731857844911,4.2676,234.33,234.24,11.82401905]
[1731857845100,0.09367462,234.32,234.24,11.82401905]
[1731857845298,4.2676,234.33,234.26,11.82401905]
[1731857845699,22.7849,234.36,234.26,11.82401905]
[1731857845903,22.7849,234.36,234.28,11.82401905]
[1731857846305,6.63591056,234.4,234.32,11.82401905]
[1731857846306,4.2662,234.4,234.32,11.82401905]
[1731857847016,0.4809142,234.42,234.38,11.82401905]
[1731857847192,0.4809142,234.42,234.31,0.1]
[1731857847193,0.4809142,234.42,234.41,11.82401905]
[1731857847607,1.0,234.55,234.46,159.3190858]
[1731857847796,1.0,234.55,234.47,11.82401905]
[1731857848107,0.09367462,234.54,234.47,11.82401905]
[1731857848314,1.0,234.55,234.51,11.82401905]
[1731857848614,1.0,234.55,234.42,0.1]
[1731857848615,1.0,234.55,234.48,11.82401905]
[1731857850092,24.12153862,234.54,234.48,11.82401905]
[1731857850292,0.12549,234.54,234.48,11.82401905]
[1731857850509,1.0,234.55,234.48,11.82401905]
[1731857850912,1.0,234.55,234.5,11.82401905]
[1731857851712,11.91769367,234.54,234.38,20.1]
[1731857851891,11.82401905,234.5,234.36,6.2674]
[1731857852098,23.902374,234.53,234.44,11.82401905]
[1731857852312,4.2636,234.54,234.44,11.82401905]
[1731857852623,1.0,234.55,234.48,11.82401905]
[1731857852819,0.09367462,234.54,234.48,11.82401905]
[1731857853000,0.09367462,234.54,234.46,11.82401905]
[1731857853197,0.09367462,234.52,234.44,11.82401905]
[1731857853403,11.82401905,234.48,234.39,11.82401905]
[1731857853717,0.12549,234.47,234.39,11.82401905]
[1731857854095,0.12549,234.47,234.31,22.8352]
[1731857854096,0.12549,234.47,234.41,11.82401905]
[1731857854413,24.027864,234.49,234.41,11.82401905]
[1731857856112,0.12549,234.47,234.39,11.82401905]
[1731857856299,0.12549,234.46,234.39,11.82401905]
[1731857858423,15.2432,234.53,234.39,11.82401905]
[1731857858424,5.2635,234.55,234.45,11.82401905]
[1731857858714,11.82401905,234.54,234.45,11.82401905]
[1731857858916,0.09367462,234.54,234.45,11.82401905]
[1731857859119,1.0,234.55,234.45,11.82401905]
[1731857859300,1.0,234.55,234.47,11.82401905]
[1731857859509,1.0,234.55,234.49,11.82401905]
[1731857860222,1.0,234.55,234.51,11.82401905]
[1731857860519,1.0,234.55,234.53,11.82401905]
[1731857861026,1.0,234.55,234.51,11.82401905]
[1731857861203,1.0,234.55,234.53,11.82401905]
[1731857861405,1.0,234.55,234.51,11.82401905]
[1731857864598,1.0,234.55,234.45,16.1426]
[1731857864599,0.12549,234.54,234.49,11.82401905]
[1731857865228,0.12549,234.54,234.47,11.82401905]
[1731857865409,24.027864,234.54,234.47,11.82401905]
[1731857866226,0.12549,234.54,234.49,11.82401905]
[1731857866523,1.0,234.55,234.53,11.82401905]
[1731857866911,1.0,234.55,234.49,11.82401905]
[1731857867111,1.0,234.55,234.53,11.82401905]
[1731857868411,1.0,234.55,234.43,0.1]
[1731857868620,1.0,234.55,234.4,20.1]
[1731857868621,1.0,234.55,234.54,42.4299]
[1731857868824,0.4809142,234.65,234.6,158.8]
[1731857869133,0.4809142,234.65,234.64,11.82401905]
[1731857870927,0.4809142,234.65,234.62,11.82401905]
[1731857871325,0.4809142,234.65,234.55,20.0]
[1731857871632,0.4809142,234.65,234.59,11.82401905]
[1731857872332,0.4809142,234.65,234.61,11.82401905]
[1731857873533,0.4809142,234.65,234.59,11.82401905]
[1731857873832,0.4809142,234.65,234.64,31.92401905]
[1731857874009,0.4809142,234.65,234.64,31.82401905]
[1731857874208,0.4809142,234.65,234.59,0.1]
[1731857874410,0.4809142,234.65,234.64,11.82401905]
[1731857875726,0.4809142,234.65,234.56,0.1]
[1731857875727,0.4809142,234.65,234.6,11.82401905]
[1731857876233,0.4809142,234.65,234.59,18.83758795]
[1731857876924,0.4809142,234.65,234.54,22.4299]
[1731857876925,0.4809142,234.65,234.57,18.83758795]
[1731857878318,0.12549,234.64,234.55,18.83758795]
[1731857878519,0.12549,234.62,234.55,18.83758795]
[1731857879242,18.83758795,234.63,234.55,18.83758795]
[1731857879539,0.4809142,234.65,234.57,18.83758795]
[1731857879718,4.7426142,234.65,234.57,18.83758795]
[1731857880030,23.58020215,234.65,234.57,18.83758795]
[1731857880426,0.4809142,234.65,234.57,18.83758795]
[1731857880634,0.12549,234.64,234.55,18.83758795]
[1731857880840,0.12549,234.64,234.57,18.83758795]
[1731857881137,0.4809142,234.65,234.63,18.83758795]
[1731857882322,0.4809142,234.65,234.61,18.83758795]
[1731857882817,0.4809142,234.65,234.53,0.95227612]
[1731857882818,0.4809142,234.65,234.59,18.83758795]
[1731857883640,0.12549,234.64,234.57,18.83758795]
[1731857884925,0.4809142,234.65,234.61,18.83758795]
[1731857886225,0.12549,234.64,234.57,18.83758795]
[1731857887943,0.4809142,234.65,234.62,18.83758795]
[1731857888241,0.4809142,234.65,234.64,18.83758795]
[1731857889642,0.4809142,234.65,234.62,18.83758795]
[1731857889939,0.4809142,234.65,234.51,0.1]
[1731857889940,0.12549,234.64,234.58,18.83758795]
[1731857891221,0.4809142,234.65,234.58,18.83758795]
[1731857891839,0.4809142,234.65,234.61,18.83758795]
[1731857892346,0.4809142,234.65,234.63,18.83758795]
[1731857893640,0.4809142,234.65,234.51,0.1]
[1731857893641,0.4809142,234.65,234.59,18.83758795]
[1731857894243,0.12549,234.64,234.57,18.83758795]
[1731857895746,0.12549,234.64,234.59,18.83758795]
[1731857896130,0.4809142,234.65,234.59,18.83758795]
[1731857896729,0.4809142,234.65,234.52,0.85238681]
[1731857896730,0.4809142,234.65,234.61,18.83758795]
[1731857898221,0.4809142,234.65,234.63,18.83758795]
[1731857904836,0.4809142,234.65,234.61,18.83758795]
[1731857905762,0.4809142,234.65,234.63,18.83758795]
[1731857906334,0.4809142,234.65,234.64,11.76876805]
[1731857910553,18.38916805,234.73,234.69,159.3190858]
[1731857910730,18.38916805,234.73,234.64,11.76876805]
[1731857911142,18.38916805,234.73,234.66,11.76876805]
[1731857911143,6.6204,234.73,234.66,11.76876805]
[1731857911740,10.6482,234.78,234.68,11.76876805]
[1731857911741,11.76876805,234.77,234.68,11.76876805]
[1731857911949,4.2596,234.76,234.68,11.76876805]
[1731857912448,11.76876805,234.75,234.62,0.85195209]
[1731857912645,11.76876805,234.75,234.66,20.0]
[1731857913755,16.02856805,234.75,234.66,20.0]
[1731857914152,11.76876805,234.75,234.67,11.76876805]
[1731857915053,11.76876805,234.77,234.67,11.76876805]
[1731857915348,11.76876805,234.77,234.69,11.76876805]
[1731857915835,16.02826805,234.77,234.69,11.76876805]
[1731857917642,4.2591,234.79,234.71,11.76876805]
[1731857918844,11.89425805,234.78,234.69,11.76876805]
[1731857919241,11.76876805,234.78,234.69,11.76876805]
[1731857920363,16.02816805,234.78,234.69,11.76876805]
[1731857923261,33.80776805,234.8,234.71,11.76876805]
[1731857923449,26.2979,234.8,234.73,11.76876805]
[1731857927450,38.06666805,234.8,234.71,11.76876805]
[1731857928258,38.06666805,234.8,234.69,11.76876805]
[1731857928457,11.76876805,234.78,234.69,11.76876805]
[1731857929364,16.02816805,234.78,234.69,11.76876805]
[1731857931746,0.1,234.77,234.62,0.12549]
[1731857931966,0.1,234.77,234.7,11.76876805]
[1731857933058,4.3595,234.77,234.7,11.76876805]
[1731857933254,0.1,234.72,234.6,20.0]
[1731857933460,0.1,234.72,234.65,20.0]
[1731857933645,11.86876805,234.72,234.65,20.0]
[1731857935254,16.12916805,234.72,234.64,11.76876805]
[1731857935970,0.1,234.75,234.69,11.76876805]
[1731857936469,4.3598,234.75,234.69,11.76876805]
[1731857936674,0.1,234.75,234.69,11.76876805]
[1731857939577,4.3598,234.75,234.61,0.85191019]
[1731857939756,4.3598,234.75,234.67,11.76876805]
[1731857940446,0.1,234.73,234.67,11.76876805]
[1731857940651,4.2603,234.72,234.61,20.85191019]
[1731857940875,4.2603,234.72,234.66,20.0]
[1731857941063,0.1,234.73,234.66,20.0]
[1731857941574,4.3602,234.73,234.66,20.0]
[1731857943571,0.1,234.7,234.66,20.0]
[1731857946059,0.1,234.7,234.65,11.76876805]
[1731857946274,0.1,234.7,234.66,7.53106157]
[1731857946771,0.1,234.7,234.6,20.85214634]
[1731857946979,0.1,234.7,234.65,7.53106157]
[1731857947352,0.1,234.67,234.55,21.64522919]
[1731857947550,0.1,234.67,234.61,7.53106157]
[1731857947954,0.1,234.7,234.65,7.53106157]
[1731857948383,0.1,234.74,234.69,7.53106157]
[1731857948581,0.1,234.72,234.69,7.53106157]
[1731857948874,0.1,234.72,234.62,20.0]
[1731857949052,0.1,234.72,234.66,7.53106157]
[1731857949254,0.1,234.72,234.63,0.8520666]
[1731857949673,0.1,234.72,234.67,7.53106157]
[1731857950056,0.1,234.72,234.65,7.53106157]
[1731857950256,0.1,234.7,234.65,11.76784985]
[1731857951072,0.1,234.7,234.58,0.85215626]
[1731857951260,0.1,234.7,234.65,20.0]
[1731857951783,0.1,234.72,234.66,11.76784985]
[1731857952156,0.1,234.76,234.68,11.76784985]
[1731857952353,0.1,234.74,234.68,11.76784985]
[1731857952572,0.1,234.74,234.59,0.1]
[1731857952573,0.1,234.72,234.59,20.0]
[1731857952781,0.1,234.72,234.65,20.0]
[1731857953259,0.1,234.75,234.66,11.76784985]
[1731857953580,0.1,234.73,234.66,11.76784985]
[1731857955270,0.1,234.76,234.66,11.76784985]
[1731857955580,0.1,234.76,234.68,11.76784985]
[1731857956079,0.1,234.76,234.61,20.9520222]
[1731857956080,0.1,234.76,234.72,11.76784985]
[1731857956467,6.6109,234.78,234.74,11.76784985]
[1731857957963,6.6109,234.78,234.72,11.76784985]
[1731857958680,6.6109,234.78,234.73,11.76784985]
[1731857960490,6.6109,234.78,234.66,20.0]
[1731857960785,6.6109,234.78,234.72,20.0]
[1731857961284,6.6109,234.78,234.73,11.76784985]
[1731857961581,0.1,234.81,234.75,11.76784985]
[1731857961764,6.3234,234.83,234.75,11.76784985]
[1731857961958,0.1,234.86,234.79,11.76784985]
[1731857962159,13.75273532,234.88,234.79,11.76784985]
[1731857962160,0.1,234.83,234.79,11.76784985]
[1731857962468,0.1,234.83,234.72,31.76784985]
[1731857962469,0.1,234.8,234.75,11.76784985]
[1731857962871,11.76784985,234.83,234.73,11.76784985]
[1731857962872,0.1,234.78,234.73,11.76784985]
[1731857964285,0.1,234.78,234.71,11.76784985]
[1731857964487,0.1,234.78,234.72,20.0]
[1731857964867,16.0203,234.82,234.72,20.0]
[1731857965067,0.1,234.8,234.74,20.0]
[1731857967175,11.86784985,234.83,234.74,20.0]
[1731857967378,0.1,234.81,234.74,20.0]
[1731857967567,0.1,234.79,234.74,20.0]
[1731857968267,0.1,234.81,234.74,20.0]
[1731857968586,0.1,234.81,234.68,0.1]
[1731857968587,0.1,234.83,234.75,11.76784985]
[1731857968795,0.1,234.81,234.75,11.76784985]
[1731857968971,0.1,234.81,234.73,11.76784985]
[1731857969165,0.1,234.81,234.74,20.0]
[1731857969568,0.1,234.81,234.73,11.76784985]
[1731857969867,0.1,234.79,234.73,11.76784985]
[1731857970269,0.1,234.79,234.71,11.76784985]
[1731857970470,0.1,234.77,234.69,11.76784985]
[1731857970660,0.1,234.77,234.7,20.0]
[1731857970867,6.099,234.8,234.75,11.76784985]
[1731857971378,6.099,234.8,234.73,11.76784985]
[1731857971894,0.1,234.85,234.84,159.8]
[1731857972191,0.5809142,234.88,234.78,11.76784985]
[1731857972397,0.1,234.86,234.78,11.76784985]
[1731857972876,0.1,234.86,234.76,11.76784985]
[1731857973086,0.4809142,234.88,234.78,11.76784985]
[1731857973587,0.4809142,234.88,234.73,23.41606021]
[1731857973786,0.4809142,234.88,234.78,11.76784985]
[1731857974288,0.1,234.85,234.73,3.41606021]
[1731857974589,0.1,234.85,234.77,11.76784985]
[1731857974762,0.4809142,234.88,234.79,11.76784985]
[1731857974965,12.24876405,234.88,234.71,23.32187392]
[1731857975165,12.24876405,234.88,234.78,11.76784985]
[1731857975783,12.24876405,234.88,234.71,23.32187392]
[1731857975784,0.1,234.86,234.73,20.0]
[1731857975988,0.1,234.86,234.77,11.76784985]
[1731857976488,12.24876405,234.88,234.77,11.76784985]
[1731857977688,0.1,234.86,234.77,11.76784985]
[1731857977889,11.86784985,234.86,234.77,11.76784985]
[1731857978077,0.1,234.86,234.77,11.76784985]
[1731857978785,0.1,234.86,234.79,11.76784985]
[1731857978986,0.1,234.8,234.69,5.84819261]
[1731857979287,11.76784985,234.83,234.73,11.76784985]
[1731857979463,0.1,234.84,234.75,11.76784985]
[1731857979665,6.63591056,234.94,234.92,159.3190858]
[1731857979987,6.2308,234.97,234.89,11.76784985]
[1731857980183,0.1,234.94,234.89,11.76784985]
[1731857980392,0.1,234.94,234.89,7.51528207]
[1731857980596,0.1,234.94,234.87,7.51528207]
[1731857980765,0.1,234.94,234.79,15.8317]
[1731857980766,0.1,234.92,234.84,7.51528207]
[1731857981475,0.1,234.89,234.84,7.51528207]
[1731857981793,0.1,234.89,234.8,20.0]
[1731857981972,0.1,234.89,234.82,7.51528207]
[1731857982377,0.1,234.89,234.82,11.75096165]
[1731857982571,0.1,234.87,234.82,11.75096165]
[1731857982892,0.1,234.87,234.8,11.75096165]
[1731857984282,0.1,234.87,234.82,11.75096165]
[1731857985074,4.2567,234.93,234.75,15.05514866]
[1731857985075,0.1,234.93,234.84,11.75096165]
[1731857985276,0.1,234.91,234.86,11.75096165]
[1731857985989,0.1,234.87,234.82,26.80611031]
[1731857986893,0.1,234.87,234.82,11.75096165]
[1731857987199,0.1,234.92,234.85,11.75096165]
[1731857987373,0.1,234.92,234.87,11.75096165]
[1731857988691,0.1,234.89,234.83,11.75096165]
[1731857989192,0.1,234.84,234.8,11.75096165]
[1731857989376,0.1,234.81,234.74,11.75096165]
[1731857989773,0.1,234.81,234.68,22.46068041]
[1731857989774,0.1,234.81,234.76,11.75096165]
[1731857990192,0.1,234.83,234.76,11.75096165]
[1731857991395,0.1,234.83,234.74,11.75096165]
[1731857991396,0.1,234.79,234.74,11.75096165]
[1731857991888,0.1,234.81,234.74,11.75096165]
[1731857992393,0.1,234.81,234.76,11.75096165]
[1731857992780,0.1,234.79,234.74,11.75096165]
[1731857992978,0.1,234.79,234.72,11.75096165]
[1731857994378,0.1,234.76,234.72,11.75096165]
[1731857994580,6.2308,234.85,234.7,11.75096165]
[1731857994581,0.1,234.75,234.7,11.75096165]
[1731857994900,0.1,234.78,234.7,11.75096165]
[1731857995194,0.1,234.76,234.7,11.75096165]
[1731857995580,0.1,234.78,234.72,11.75096165]
[1731857996180,0.1,234.8,234.77,11.75096165]
[1731857996395,0.1,234.78,234.75,11.75096165]
[1731857997591,0.1,234.78,234.65,6.73127794]
[1731857997592,0.1,234.74,234.71,11.75096165]
[1731858000677,0.1,234.74,234.69,11.75096165]
[1731858000900,0.1,234.71,234.69,11.75096165]
[1731858001073,0.1,234.71,234.67,11.75096165]
[1731858002394,6.3113,234.82,234.75,159.8]
[1731858002598,0.1,234.81,234.77,11.75096165]
[1731858002790,0.1,234.79,234.77,11.75096165]
[1731858003101,0.1,234.79,234.69,0.85179219]
[1731858003312,0.1,234.77,234.7,7.06422518]
[1731858003475,0.1,234.77,234.69,20.0]
[1731858003675,0.1,234.77,234.74,11.75096165]
[1731858003894,6.2113,234.82,234.69,20.0]
[1731858003895,0.1,234.81,234.69,27.06422518]
[1731858004091,0.1,234.81,234.76,11.75096165]
[1731858004285,0.1,234.81,234.69,27.06422518]
[1731858004286,6.2113,234.82,234.78,11.75096165]
[1731858004488,0.1,234.79,234.78,11.75096165]
[1731858005105,0.1,234.79,234.74,11.75096165]
[1731858005292,0.1,234.77,234.73,11.75096165]
[1731858005801,0.1,234.79,234.73,11.75096165]
[1731858005996,0.1,234.77,234.73,11.75096165]
[1731858006812,0.1,234.75,234.73,11.75096165]
[1731858006979,0.1,234.75,234.71,11.75096165]
[1731858007179,0.1,234.75,234.69,11.75096165]
[1731858007609,11.75096165,234.76,234.69,11.75096165]
[1731858007610,0.1,234.73,234.69,11.75096165]
[1731858007809,0.1,234.73,234.67,11.75096165]
[1731858008585,0.1,234.69,234.67,11.75096165]
[1731858010182,0.1,234.67,234.65,11.75096165]
[1731858010417,0.1,234.63,234.53,13.20964236]
[1731858010610,0.1,234.59,234.56,11.75096165]
[1731858010987,0.1,234.55,234.54,11.75096165]
[1731858011291,0.1,234.55,234.52,11.75096165]
[1731858011898,29.9796,234.69,234.48,11.75096165]
[1731858011899,0.1,234.51,234.48,11.75096165]
[1731858012407,0.1,234.47,234.46,11.75096165]
[1731858012596,0.1,234.47,234.44,11.75096165]
[1731858013000,0.1,234.52,234.46,11.75096165]
[1731858013222,6.4356,234.56,234.5,11.75096165]
[1731858013223,0.1,234.54,234.5,11.75096165]
[1731858013388,0.1,234.54,234.53,11.75096165]
[1731858013788,0.1,234.52,234.51,11.75096165]
[1731858014195,0.1,234.54,234.51,11.75096165]
[1731858014392,0.1,234.54,234.44,6.79276284]
[1731858014393,0.1,234.52,234.44,6.79276284]
[1731858014694,0.1,234.48,234.43,11.75096165]
[1731858015199,0.1,234.44,234.43,11.75096165]
[1731858015586,0.1,234.46,234.43,11.75096165]
[1731858015811,0.1,234.44,234.43,11.75096165]
[1731858016289,11.75096165,234.51,234.38,6.62351045]
[1731858016290,0.1,234.42,234.38,6.62351045]
[1731858016618,0.1,234.42,234.4,11.75096165]
[1731858020600,0.1,234.48,234.4,11.75096165]
[1731858020806,0.1,234.48,234.46,11.75096165]
[1731858021209,0.1,234.46,234.38,20.0]
[1731858021411,0.1,234.46,234.44,11.75096165]
[1731858021904,0.1,234.5,234.44,11.75096165]
[1731858022103,16.0231,234.55,234.38,20.0]
[1731858022104,0.1,234.52,234.48,11.75096165]
[1731858022311,0.1,234.52,234.51,11.75096165]
[1731858026027,6.4678,234.65,234.57,159.7]
[1731858026028,18.21876165,234.65,234.57,159.7]
[1731858026197,18.21876165,234.65,234.48,11.75096165]
[1731858026198,20.0,234.64,234.56,11.75096165]
[1731858026397,0.09367462,234.64,234.56,11.75096165]
[1731858026923,6.4678,234.65,234.62,11.75096165]
[1731858027223,6.4678,234.65,234.52,0.1]
[1731858027224,6.4678,234.71,234.64,11.75096165]
[1731858027396,6.4678,234.71,234.67,11.75096165]
[1731858027822,6.4678,234.71,234.65,11.75096165]
[1731858028117,6.4678,234.71,234.63,11.75096165]
[1731858028291,6.4678,234.71,234.69,11.75096165]
[1731858028499,16.0231,234.81,234.69,11.75096165]
[1731858028700,16.0231,234.81,234.73,11.75096165]
[1731858029414,0.09367462,234.8,234.71,11.75096165]
[1731858029611,0.09367462,234.78,234.71,11.75096165]
[1731858029810,24.12153862,234.78,234.71,11.75096165]
[1731858030021,24.027864,234.78,234.71,11.75096165]
[1731858030205,24.027864,234.76,234.67,11.75096165]
[1731858030409,24.12153862,234.74,234.65,11.75096165]
[1731858030599,24.12153862,234.72,234.65,11.75096165]
[1731858030910,35.87250027,234.72,234.63,11.75096165]
[1731858032025,20.2819,234.81,234.68,11.75096165]
[1731858032317,18.81983279,234.79,234.7,18.81983279]
[1731858032697,0.09367462,234.78,234.7,18.81983279]
[1731858033102,0.1,234.89,234.74,18.81983279]
[1731858033297,18.81983279,234.86,234.76,18.81983279]
[1731858033520,0.09367462,234.83,234.76,18.81983279]
[1731858034016,0.09367462,234.83,234.74,18.81983279]
[1731858034734,0.34465462,234.81,234.72,18.81983279]
[1731858034901,24.12153862,234.81,234.72,18.81983279]
[1731858035604,24.12153862,234.79,234.72,18.81983279]
[1731858036020,24.12153862,234.79,234.7,18.81983279]
[1731858036404,24.12153862,234.77,234.68,18.81983279]
[1731858037522,24.12153862,234.77,234.7,18.81983279]
[1731858037724,24.12153862,234.75,234.57,0.1]
[1731858037909,24.12153862,234.75,234.66,18.81983279]
[1731858038120,6.362,234.8,234.7,18.81983279]
[1731858038414,6.362,234.8,234.74,18.81983279]
[1731858038615,0.09367462,234.79,234.74,18.81983279]
[1731858038932,0.09367462,234.79,234.72,18.81983279]
[1731858039427,0.21916462,234.79,234.72,18.81983279]
[1731858039723,0.12549,234.78,234.72,18.81983279]
[1731858039921,0.25098,234.78,234.72,18.81983279]
[1731858040328,0.12549,234.76,234.7,18.81983279]
[1731858040619,0.12549,234.74,234.7,18.81983279]
[1731858040821,0.25098,234.74,234.68,18.81983279]
[1731858041822,0.09367462,234.73,234.68,18.81983279]
[1731858042014,0.25098,234.74,234.68,18.81983279]
[1731858042213,23.776884,234.76,234.7,18.81983279]
[1731858042409,0.12549,234.77,234.72,18.81983279]
[1731858043320,0.21916462,234.77,234.72,18.81983279]
[1731858043722,0.12549,234.76,234.72,18.81983279]
[1731858044811,0.12549,234.76,234.7,18.81983279]
[1731858045405,23.902374,234.76,234.7,18.81983279]
[1731858045609,0.12549,234.75,234.7,18.81983279]
[1731858045829,0.12549,234.73,234.68,18.81983279]
[1731858046001,0.25098,234.73,234.68,18.81983279]
[1731858046607,0.12549,234.71,234.66,18.81983279]
[1731858046808,0.25098,234.71,234.66,18.81983279]
[1731858047110,0.25098,234.71,234.68,18.81983279]
[1731858048219,0.25098,234.71,234.66,18.81983279]
[1731858048631,0.21916462,234.7,234.66,18.81983279]
[1731858048820,0.34465462,234.7,234.64,18.81983279]
[1731858051926,0.34465462,234.7,234.62,18.81983279]
[1731858051927,24.12153862,234.7,234.62,18.81983279]
[1731858052143,0.21916462,234.61,234.51,6.62024502]
[1731858052310,0.21916462,234.61,234.39,15.3984]
[1731858052311,0.21916462,234.53,234.45,18.81983279]
[1731858052514,0.21916462,234.51,234.45,18.81983279]
[1731858052721,0.25098,234.5,234.45,18.81983279]
[1731858054035,0.25098,234.5,234.43,18.81983279]
[1731858054211,0.25098,234.5,234.43,11.78896297]
[1731858055329,12.03994297,234.5,234.41,11.78896297]
[1731858055539,12.03994297,234.5,234.42,20.0]
[1731858055540,11.78896297,234.48,234.42,20.0]
[1731858055712,24.027864,234.47,234.39,11.78896297]
[1731858056116,0.09367462,234.46,234.39,11.78896297]
[1731858056331,0.09367462,234.46,234.39,18.86850196]
[1731858058246,0.12549,234.51,234.43,18.86850196]
[1731858058437,23.902374,234.51,234.43,18.86850196]
[1731858058622,0.09367462,234.5,234.43,18.86850196]
[1731858059234,23.902374,234.49,234.43,18.86850196]
[1731858059421,0.12549,234.48,234.41,18.86850196]
[1731858059811,0.12549,234.48,234.36,18.86850196]
[1731858059812,35.36500196,234.54,234.45,18.86850196]
[1731858060016,16.4965,234.54,234.47,18.86850196]
[1731858060317,0.09367462,234.53,234.47,18.86850196]
[1731858060625,0.09367462,234.53,234.36,19.82138932]
[1731858060626,0.09367462,234.53,234.45,18.86850196]
[1731858060837,18.86850196,234.52,234.45,18.86850196]
[1731858061140,0.09367462,234.51,234.43,18.86850196]
[1731858061311,18.86850196,234.5,234.41,18.86850196]
[1731858061637,18.86850196,234.5,234.42,20.0]
[1731858062833,24.027864,234.47,234.39,18.86850196]
[1731858063342,18.86850196,234.48,234.39,18.86850196]
[1731858063715,18.86850196,234.46,234.39,18.86850196]
[1731858065516,18.86850196,234.43,234.34,38.86850196]
[1731858066444,18.86850196,234.43,234.34,18.86850196]
[1731858067740,0.09367462,234.44,234.36,18.86850196]
[1731858067945,18.86850196,234.51,234.43,18.86850196]
[1731858069233,24.027864,234.5,234.43,18.86850196]
[1731858069443,18.86850196,234.53,234.45,18.86850196]
[1731858070356,16.4965,234.54,234.46,18.86850196]
[1731858070531,6.0988,234.55,234.48,18.86850196]
[1731858070955,18.86850196,234.57,234.48,18.86850196]
[1731858071739,24.027864,234.56,234.48,18.86850196]
[1731858073152,18.96217658,234.55,234.39,16.2786]
[1731858073359,18.86850196,234.53,234.45,20.0]